bitfinex/quotes_ETHUSD_20241124
["timestamp","ask_amount","ask_price","bid_price","bid_amount"]
[1732444976639,0.25040695,3375.1,3374.9,0.2951]
[1732444977627,0.02210108,3375.0,3374.9,0.2951]
[1732444978196,0.05992046,3375.0,3374.9,0.2951]
[1732444978635,0.78070108,3375.4,3374.9,0.2951]
[1732444978804,0.05992046,3375.0,3374.9,0.2951]
[1732444979021,0.02210108,3375.2,3374.9,0.2951]
[1732444979223,0.05992046,3375.1,3374.9,0.2951]
[1732444979556,0.05992046,3375.1,3374.7,0.2951]
[1732444979714,0.02210108,3375.0,3374.7,0.2951]
[1732444980348,0.05992046,3374.9,3374.7,0.2951]
[1732444980530,0.8051,3374.8,3374.2,0.2951]
[1732444980728,0.02210108,3374.7,3374.4,0.2951]
[1732444981018,0.02210108,3374.7,3374.6,3.2951]
[1732444981240,0.8051,3375.2,3374.6,3.2951]
[1732444981553,0.05988509,3375.1,3374.8,0.2951]
[1732444982518,0.05988509,3375.1,3374.7,0.2951]
[1732444983250,0.88614024,3375.3,3375.0,0.8451]
[1732444983421,0.8051,3375.7,3375.0,0.8451]
[1732444984241,0.02210108,3375.6,3375.0,0.8451]
[1732444984764,0.8051,3375.7,3375.0,0.8451]
[1732444987086,0.02210108,3375.6,3375.0,0.8451]
[1732444987291,0.7847,3376.0,3375.0,0.8451]
[1732444987494,0.02210108,3375.9,3375.0,0.8451]
[1732444987825,0.96682035,3375.8,3375.0,0.8451]
[1732444988664,0.02210108,3375.7,3375.0,0.8451]
[1732444989171,0.96682035,3375.8,3375.0,0.8451]
[1732444990775,0.02210108,3375.7,3375.0,0.8451]
[1732444991604,0.06008102,3375.6,3375.0,0.8451]
[1732444993297,0.80680108,3375.5,3375.1,0.2951]
[1732444993680,0.06015721,3375.4,3375.1,0.2951]
[1732444994006,0.02210108,3375.3,3375.1,0.2951]
[1732444994301,0.06020348,3375.2,3375.1,0.2951]
[1732444994662,0.02210108,3375.3,3375.1,0.2951]
[1732444994871,0.06020348,3375.2,3375.1,0.2951]
[1732444995305,0.98671132,3375.4,3374.9,0.2951]
[1732444995484,0.06020348,3375.2,3374.9,0.2951]
[1732444995677,0.80680108,3375.4,3374.9,0.2951]
[1732444995874,0.06020348,3375.1,3374.9,0.2951]
[1732444996213,0.80680108,3375.4,3374.9,0.2951]
[1732444996576,0.06020348,3375.3,3375.1,0.2951]
[1732444997299,0.06013273,3375.2,3375.1,0.2951]
[1732444997809,0.02210108,3375.6,3375.0,0.2951]
[1732444998020,0.7847,3376.0,3375.1,0.8451]
[1732444998324,0.06013273,3375.9,3375.7,0.2951]
[1732444998472,0.06013273,3375.9,3375.8,0.55]
[1732444998676,0.02210108,3376.2,3375.8,0.8451]
[1732444998870,0.7847,3376.3,3375.8,0.8451]
[1732444998871,0.06017355,3375.9,3375.8,0.8451]
[1732444999175,0.763,3376.6,3375.8,4.6035]
[1732444999567,8.86140243,3376.9,3376.2,0.2951]
[1732444999769,0.763,3377.0,3376.4,0.2951]
[1732445000071,2.7437,3380.9,3375.9,0.02961886]
[1732445000072,0.06017355,3376.9,3376.7,0.8451]
[1732445000478,0.06017355,3376.9,3375.9,0.02961886]
[1732445000479,0.06017355,3376.9,3376.8,1.6035]
[1732445000713,0.02210108,3377.9,3377.0,0.2951]
[1732445001015,8.88350351,3377.9,3377.2,0.2951]
[1732445001218,1.0248239,3377.8,3376.8,1.3084]
[1732445001390,0.763,3377.6,3376.9,0.55]
[1732445001728,0.763,3377.6,3376.8,0.55]
[1732445001729,0.20309358,3377.5,3376.8,0.55]
[1732445001883,0.26326713,3377.5,3376.8,0.55]
[1732445002291,9.12466956,3377.5,3376.7,3.0]
[1732445002503,0.98876696,3377.4,3376.3,0.55]
[1732445002709,0.02210108,3377.3,3376.7,3.0]
[1732445002910,1.01134365,3377.2,3376.3,0.55]
[1732445003114,0.06017355,3377.2,3376.7,3.0]
[1732445003413,0.06017355,3377.2,3377.0,3.55]
[1732445003583,0.02210108,3377.9,3377.0,3.55]
[1732445003784,0.96465035,3377.8,3377.0,0.55]
[1732445004025,0.02210108,3377.7,3377.0,0.55]
[1732445004513,0.06017355,3377.6,3377.0,0.55]
[1732445004716,0.02210108,3377.5,3377.0,0.55]
[1732445005129,0.763,3377.4,3376.3,0.7584]
[1732445005421,0.02210108,3377.3,3376.3,0.7584]
[1732445005624,0.97066771,3377.2,3376.1,0.2951]
[1732445005836,0.763,3377.0,3376.0,0.7584]
[1732445006120,0.19767796,3376.9,3375.1,0.7584]
[1732445006326,9.05908039,3376.9,3375.1,0.7584]
[1732445006526,0.06017355,3376.8,3375.2,0.7584]
[1732445006822,0.02210108,3376.7,3375.2,0.2951]
[1732445007024,0.68865222,3376.7,3375.3,0.7880232]
[1732445007182,0.06103571,3376.6,3375.3,0.7880232]
[1732445007384,0.06103571,3376.6,3375.4,0.55]
[1732445007692,0.06103571,3376.6,3375.5,0.7584]
[1732445007885,0.59636474,3376.6,3376.1,3.0]
[1732445008281,0.06103571,3376.6,3376.2,0.55]
[1732445008723,0.02210108,3376.8,3376.2,0.55]
[1732445009086,0.02210108,3376.9,3376.2,0.55]
[1732445009607,0.06091336,3376.8,3376.2,0.55]
[1732445009921,0.02210108,3376.7,3376.2,0.55]
[1732445010126,0.02210108,3376.7,3375.5,1.0535]
[1732445010295,0.814,3376.6,3375.6,0.55]
[1732445010619,0.08299269,3376.5,3375.6,0.55]
[1732445010808,0.814,3376.4,3375.0,0.8309]
[1732445011011,8.88350351,3376.3,3375.0,0.8309]
[1732445011330,8.9222886,3376.3,3375.0,0.8309]
[1732445012430,0.02210108,3376.2,3375.0,0.8309]
[1732445012622,0.34795197,3376.1,3375.1,0.55]
[1732445012942,0.02210108,3376.0,3375.1,0.55]
[1732445013509,0.0607393,3375.9,3375.1,0.55]
[1732445014243,0.02210108,3375.8,3375.1,0.55]
[1732445014744,0.0607393,3375.7,3375.1,0.55]
[1732445014906,0.02210108,3375.6,3375.1,0.55]
[1732445015106,0.8747393,3375.7,3375.1,0.55]
[1732445015334,0.814,3375.7,3375.1,0.55]
[1732445015741,0.02210108,3375.6,3375.1,0.55]
[1732445016051,0.02210108,3375.6,3374.9,0.55]
[1732445017948,0.02210108,3375.6,3374.8,0.55]
[1732445019171,0.02210108,3375.6,3374.8,3.55]
[1732445021312,0.02210108,3375.6,3375.1,0.2951]
[1732445021815,0.02210108,3375.6,3375.3,0.2951]
[1732445021816,0.7756,3375.5,3375.3,0.2951]
[1732445022015,0.02210108,3375.4,3375.3,0.2951]
[1732445022221,0.02210108,3375.4,3375.3,0.8451]
[1732445022443,0.79770108,3375.4,3374.8,3.0]
[1732445022754,0.79770108,3375.4,3374.0,0.8319]
[1732445022755,0.06029328,3375.3,3374.7,3.2951]
[1732445022951,0.02210108,3375.2,3374.1,0.2951]
[1732445023246,0.02210108,3375.2,3374.8,0.2951]
[1732445023247,8.94378863,3375.2,3374.8,0.2951]
[1732445023444,9.83334129,3375.1,3374.8,0.2951]
[1732445023915,0.0823862,3375.0,3374.8,0.2951]
[1732445024446,0.06028512,3375.0,3374.8,0.2951]
[1732445024650,0.7756,3374.9,3374.8,0.8451]
[1732445025046,0.79770108,3374.9,3374.8,0.8451]
[1732445025247,0.8579862,3374.9,3374.8,0.8451]
[1732445025541,1.80782398,3374.9,3374.8,0.2951]
[1732445025737,1.80782398,3374.9,3373.5,0.2951]
[1732445025955,0.02210108,3374.8,3373.5,0.2951]
[1732445026453,0.06028512,3374.7,3373.5,0.2951]
[1732445026653,0.02210108,3374.6,3373.5,0.2951]
[1732445026847,0.02210108,3374.6,3373.5,0.64865751]
[1732445027060,0.06028512,3374.5,3374.4,0.2951]
[1732445027461,0.06028512,3374.5,3374.4,0.8451]
[1732445027740,0.02210108,3374.8,3374.5,0.8451]
[1732445031159,0.7756,3374.9,3374.5,0.8451]
[1732445031682,0.02210108,3374.8,3374.5,0.2951]
[1732445031918,0.7963,3374.7,3374.5,0.2951]
[1732445032087,0.99008143,3374.6,3374.5,0.2951]
[1732445032795,0.99008143,3374.6,3373.5,0.2951]
[1732445033126,0.99008143,3374.6,3373.7,0.2951]
[1732445033424,0.7963,3374.5,3374.1,0.2951]
[1732445033632,0.02210108,3374.4,3374.3,0.2951]
[1732445033784,0.99008143,3374.4,3374.3,0.8451]
[1732445033981,0.02210108,3374.4,3374.3,0.8451]
[1732445034690,0.02210108,3374.4,3372.7,0.35988893]
[1732445034691,0.81840108,3374.4,3373.9,0.2951]
[1732445036109,0.81840108,3374.4,3374.0,0.8451]
[1732445037612,0.7963,3374.4,3374.0,0.8451]
[1732445038002,0.05931603,3374.3,3374.0,0.8451]
[1732445038197,0.7963,3374.4,3374.0,0.8451]
[1732445038398,0.05931603,3374.2,3374.0,0.8451]
[1732445038634,0.7963,3374.4,3374.0,0.8451]
[1732445038845,0.05931603,3374.1,3374.0,0.8451]
[1732445039344,0.7742,3374.8,3374.0,0.8451]
[1732445039648,0.02210108,3374.7,3374.2,0.8451]
[1732445039811,0.05931603,3374.7,3374.2,0.8451]
[1732445040744,0.05931603,3374.7,3374.2,1.6023]
[1732445041236,0.91045143,3374.9,3374.2,1.6023]
[1732445041423,0.05931603,3374.6,3374.2,1.6023]
[1732445041626,0.7742,3374.9,3374.2,3.8451]
[1732445041940,0.02210108,3374.8,3374.2,0.8451]
[1732445042104,0.02210108,3374.8,3374.2,3.8451]
[1732445042311,0.02210108,3374.8,3374.2,0.8451]
[1732445042506,0.02210108,3374.8,3374.2,3.8451]
[1732445042841,0.02210108,3374.8,3374.2,0.8451]
[1732445043008,0.02210108,3375.1,3374.3,3.0]
[1732445043205,0.05949303,3374.7,3374.2,0.8451]
[1732445043406,8.86140243,3375.1,3374.4,0.55]
[1732445043729,0.98787143,3375.0,3374.4,0.55]
[1732445044043,1.04736446,3375.0,3374.3,3.0]
[1732445044339,1.06829669,3374.9,3374.3,3.0]
[1732445044543,1.06829669,3374.9,3374.2,0.55]
[1732445044736,0.02210108,3374.8,3374.4,0.55]
[1732445044947,0.08159411,3374.8,3374.4,0.55]
[1732445045130,0.05949303,3374.8,3374.4,0.55]
[1732445045507,0.05949303,3374.8,3374.2,0.55]
[1732445045729,0.05949303,3374.8,3374.4,0.55]
[1732445046240,0.02210108,3375.0,3374.4,0.55]
[1732445046444,0.05949303,3374.7,3374.3,3.2951]
[1732445046647,0.02210108,3374.8,3374.4,0.55]
[1732445046809,0.86249303,3374.6,3373.8,0.2951]
[1732445047149,0.08162133,3374.5,3374.1,0.2951]
[1732445047440,0.05952025,3374.5,3374.1,0.2951]
[1732445047642,1.03412263,3374.5,3374.1,0.2951]
[1732445048042,1.03412263,3374.5,3374.2,0.55]
[1732445048258,0.02210108,3374.4,3374.2,0.55]
[1732445048617,0.97460238,3374.5,3374.2,0.55]
[1732445048834,0.05952025,3374.3,3374.2,0.55]
[1732445049030,0.02210108,3374.7,3374.2,0.55]
[1732445049243,0.05952025,3374.3,3374.2,0.55]
[1732445049453,0.803,3374.8,3374.2,0.55]
[1732445049658,0.8285,3375.3,3374.4,0.55]
[1732445049951,0.02210108,3375.2,3374.4,0.55]
[1732445050149,0.07975789,3375.2,3374.4,0.55]
[1732445051232,0.07975789,3375.2,3374.6,0.55]
[1732445052233,0.07975789,3375.2,3374.5,0.55]
[1732445052581,0.97696603,3375.1,3374.6,0.2951]
[1732445052861,0.02210108,3375.0,3374.7,0.55]
[1732445053287,0.05765681,3374.9,3374.7,0.55]
[1732445053432,0.05765681,3374.9,3374.6,0.2951]
[1732445053766,0.05765681,3374.9,3374.7,0.55]
[1732445054304,0.8285,3375.1,3374.3,3.2951]
[1732445054470,0.02210108,3375.0,3374.3,3.2951]
[1732445054629,0.07975789,3375.0,3374.3,3.2951]
[1732445055364,0.8285,3374.9,3374.3,0.2951]
[1732445055558,0.02210108,3374.8,3374.1,0.2951]
[1732445056361,8.88350351,3374.8,3374.1,0.2951]
[1732445056675,1.02885716,3374.7,3374.3,0.2951]
[1732445056830,1.05095824,3374.7,3374.5,0.2951]
[1732445057031,1.07408607,3374.6,3374.5,0.8451]
[1732445057540,1.13174288,3374.6,3374.5,0.8451]
[1732445059085,1.15384396,3374.6,3374.5,0.8451]
[1732445060197,1.13174288,3374.6,3374.5,0.8451]
[1732445062687,0.05765681,3374.6,3374.5,0.8451]
[1732445063052,0.8285,3374.9,3374.6,0.55]
[1732445063253,0.8285,3374.9,3374.5,0.55]
[1732445063885,0.7879,3375.5,3374.5,0.55]
[1732445064053,9.90642017,3375.4,3374.5,0.55]
[1732445064249,8.91717874,3375.4,3374.5,0.55]
[1732445065189,8.91717874,3375.4,3374.5,0.8451]
[1732445065394,0.02210108,3375.3,3374.4,0.55]
[1732445065566,0.99260895,3375.3,3374.4,0.55]
[1732445065973,0.05577631,3375.2,3374.4,0.55]
[1732445066291,0.7879,3375.0,3374.6,0.55]
[1732445066501,0.05583099,3374.9,3374.6,0.55]
[1732445066901,0.07793207,3374.9,3374.6,0.55]
[1732445067061,0.05583099,3374.9,3374.6,0.55]
[1732445067877,0.05583099,3374.9,3374.5,0.55]
[1732445068084,0.02210108,3374.8,3374.5,0.55]
[1732445068657,0.05583099,3374.7,3374.5,0.55]
[1732445068857,0.02210108,3374.6,3374.2,0.8451]
[1732445069093,0.05578998,3374.5,3374.2,0.8451]
[1732445069335,0.02210108,3374.9,3374.2,0.8451]
[1732445069497,0.22827422,3374.8,3374.2,0.8451]
[1732445069665,0.02210108,3374.7,3374.2,0.8451]
[1732445070184,0.85028998,3374.6,3374.2,0.8451]
[1732445070367,0.02210108,3374.5,3374.2,0.8451]
[1732445071005,0.05578998,3374.4,3374.2,0.8451]
[1732445071670,1.02916933,3374.4,3374.2,0.8451]
[1732445071866,1.02916933,3374.4,3372.8,0.35922382]
[1732445071867,0.1,3374.0,3372.5,0.7715]
[1732445072107,0.7945,3373.8,3372.2,0.7715]
[1732445072271,0.7945,3373.6,3372.2,0.7715]
[1732445072466,0.7945,3373.4,3372.2,0.7715]
[1732445072684,0.03706928,3373.3,3372.2,0.7715]
[1732445072866,0.05552745,3373.2,3372.3,0.2951]
[1732445073079,1.06744404,3373.2,3372.3,0.2951]
[1732445074729,1.06744404,3373.2,3372.7,0.55]
[1732445074895,1.06744404,3373.2,3372.7,0.8451]
[1732445076121,1.06744404,3373.2,3372.7,0.55]
[1732445076326,1.03037737,3373.2,3372.7,0.55]
[1732445077332,1.06862798,3373.1,3372.7,0.55]
[1732445077528,0.05540433,3373.0,3372.7,0.55]
[1732445077837,0.0370636,3373.0,3372.7,0.55]
[1732445078124,0.03706365,3373.3,3372.7,0.55]
[1732445078286,0.05501592,3373.2,3372.7,0.55]
[1732445078485,0.03706369,3373.1,3372.7,0.55]
[1732445079016,0.05501592,3373.0,3372.7,0.55]
[1732445079426,0.09208011,3373.0,3372.7,0.55]
[1732445079631,0.7932,3372.9,3372.0,0.00234812]
[1732445079826,0.03707074,3372.8,3372.0,0.00234812]
[1732445080029,0.97466891,3372.7,3372.0,0.00234812]
[1732445080329,0.1,3371.7,3369.1,0.30802846]
[1732445080498,0.7932,3372.0,3368.3,0.1488648]
[1732445080499,0.1,3369.7,3368.6,2.02302346]
[1732445080700,0.7932,3368.7,3368.3,0.1488648]
[1732445080934,6.02936278,3368.5,3368.3,0.1488648]
[1732445081081,12.67751126,3368.4,3368.3,0.1488648]
[1732445081290,9.67808124,3368.4,3368.3,0.1488648]
[1732445081619,9.67808124,3368.4,3366.5,0.7982]
[1732445081620,0.7932,3366.3,3363.1,26.63]
[1732445081784,0.7932,3366.3,3357.7,4.18641578]
[1732445081785,0.2,3364.1,3363.8,0.1752894]
[1732445081985,10.86488158,3364.1,3362.5,0.01239363]
[1732445082213,11.35989701,3364.1,3362.5,0.01239363]
[1732445082535,14.02651222,3364.1,3364.0,0.58814305]
[1732445082722,0.1,3363.4,3362.5,0.01239363]
[1732445082887,14.02547499,3363.4,3362.5,0.01239363]
[1732445083093,15.42802249,3363.4,3362.5,0.01239363]
[1732445083315,19.0916797,3363.4,3362.5,0.01239363]
[1732445083492,18.9916797,3363.4,3362.5,0.01239363]
[1732445083691,18.96815711,3363.4,3362.5,0.01239363]
[1732445083892,18.83614015,3363.4,3362.5,0.01239363]
[1732445084239,18.83614015,3363.4,3362.8,0.8284]
[1732445084441,18.77280701,3363.4,3362.8,0.8284]
[1732445084734,6.29339712,3363.4,3363.1,1.49553704]
[1732445084901,0.04783196,3363.4,3363.3,0.98230847]
[1732445085102,0.04623756,3363.4,3363.3,1.27583742]
[1732445085302,2.38338722,3364.6,3363.5,0.8284]
[1732445085505,4.92587321,3365.7,3363.3,0.44743742]
[1732445085506,0.04320643,3364.5,3364.1,1.3784]
[1732445085705,0.1,3366.9,3364.3,1.95703717]
[1732445085905,0.17889633,3366.8,3364.5,0.55]
[1732445086187,0.17889633,3366.8,3366.6,0.55]
[1732445086396,0.14176622,3366.8,3366.6,0.55]
[1732445086695,0.1,3366.1,3364.3,0.55]
[1732445087039,0.1,3365.4,3364.3,0.3727]
[1732445087239,0.1,3365.2,3363.9,2.18]
[1732445087528,0.19945772,3364.7,3363.4,0.8284]
[1732445087715,0.1,3364.6,3363.4,0.8284]
[1732445087919,0.04176622,3364.5,3363.4,0.8284]
[1732445088164,0.09945772,3364.4,3363.4,0.8284]
[1732445088464,0.1,3364.2,3363.3,0.00395888]
[1732445088652,0.09945772,3363.9,3363.3,0.00395888]
[1732445088961,0.09945772,3363.7,3363.3,0.00395888]
[1732445089324,0.1,3364.2,3363.3,0.00395888]
[1732445089325,0.09945772,3363.9,3363.3,0.00395888]
[1732445089525,0.04176622,3363.8,3362.0,0.00187442]
[1732445089722,0.04176622,3363.8,3361.8,0.00187442]
[1732445089723,0.09812558,3363.7,3361.8,0.00187442]
[1732445090264,0.04176622,3363.6,3361.8,0.00187442]
[1732445090474,0.03716705,3363.6,3361.8,0.00187442]
[1732445090936,0.09812558,3363.7,3361.8,0.00187442]
[1732445091270,0.13529263,3363.9,3361.8,0.00187442]
[1732445091570,0.04176622,3363.8,3361.8,0.00187442]
[1732445091769,0.04176622,3363.8,3362.0,0.00187442]
[1732445091934,0.09812558,3363.9,3362.0,0.00187442]
[1732445092122,0.09812558,3363.9,3362.1,0.55]
[1732445092550,0.04176622,3363.8,3362.5,0.55]
[1732445092725,0.1,3364.1,3362.5,0.55]
[1732445093052,0.09812558,3364.4,3362.5,0.55]
[1732445093252,0.09812558,3364.4,3362.5,0.55187442]
[1732445093429,6.5,3364.8,3362.7,0.55187442]
[1732445093430,0.04176622,3364.3,3362.7,0.55187442]
[1732445093623,0.04176622,3364.3,3362.9,0.55]
[1732445093856,0.09812558,3365.0,3362.9,0.55187442]
[1732445094061,0.09812558,3365.0,3362.9,2.01837557]
[1732445094224,0.04114652,3364.9,3363.1,0.00187442]
[1732445094441,0.70095908,3364.9,3363.1,2.01241357]
[1732445094766,0.1,3365.5,3363.3,0.00187442]
[1732445094767,0.09812558,3365.4,3363.3,0.00187442]
[1732445095129,0.04114652,3365.3,3363.3,0.00187442]
[1732445095552,0.04114652,3365.3,3363.3,1.44180092]
[1732445095861,0.04114652,3365.3,3363.5,5.0477605]
[1732445096070,0.04114652,3365.3,3363.5,0.55]
[1732445096428,0.04114652,3365.3,3363.7,1.47798925]
[1732445096630,0.04114652,3365.3,3363.6,1.47975812]
[1732445096877,0.89752558,3365.9,3363.8,2.01073026]
[1732445097075,0.89752558,3365.9,3364.0,0.55]
[1732445097368,0.04094005,3365.8,3364.0,0.00187442]
[1732445097586,0.04094005,3365.8,3364.2,0.55]
[1732445097756,0.09812558,3366.3,3364.2,0.55]
[1732445098068,0.09812558,3366.3,3364.2,0.55187442]
[1732445098369,0.0400552,3366.2,3364.2,0.55187442]
[1732445098738,0.09812558,3366.3,3364.2,0.55187442]
[1732445098945,0.04019855,3366.2,3364.2,0.55187442]
[1732445099155,0.09812558,3366.3,3364.2,0.55187442]
[1732445099354,0.04019855,3366.2,3364.5,0.00187442]
[1732445099528,0.89752558,3366.6,3364.8,1.44473635]
[1732445099529,0.09812558,3366.6,3364.8,1.44473635]
[1732445099729,0.09812558,3366.8,3365.0,0.55]
[1732445099949,0.04030328,3366.7,3365.1,1.4952653]
[1732445100128,0.09812558,3366.8,3365.0,0.55]
[1732445100330,0.04030328,3366.7,3364.8,0.55]
[1732445100530,0.04030328,3366.7,3364.0,0.7902]
[1732445100531,0.09812558,3365.6,3364.0,0.7902]
[1732445100739,0.09812558,3366.1,3364.0,2.26859151]
[1732445100939,0.09812558,3365.7,3364.1,0.22704659]
[1732445101173,0.09812558,3365.5,3363.6,0.2951]
[1732445101374,0.09812558,3365.5,3363.5,2.86]
[1732445101549,0.09812558,3365.3,3363.6,0.36520744]
[1732445101887,0.0852732,3365.4,3363.6,0.24492632]
[1732445102073,0.7716,3365.3,3363.5,3.1551]
[1732445102295,0.037151,3365.2,3363.5,3.1051]
[1732445102589,0.8568732,3365.1,3362.0,0.0147268]
[1732445102750,0.03715927,3365.0,3362.9,0.0147268]
[1732445102953,0.05676285,3364.8,3362.6,1.4491074]
[1732445103190,0.04029501,3364.9,3363.1,1.79359304]
[1732445103356,0.7716,3365.1,3363.2,0.22259645]
[1732445103552,0.82836285,3365.8,3363.5,5.1241962]
[1732445103759,0.04029501,3365.7,3363.7,1.40526919]
[1732445103995,0.05676285,3366.2,3364.0,1.47839151]
[1732445104165,0.85363714,3366.2,3364.6,0.55]
[1732445104496,0.85363714,3366.2,3363.9,0.04323715]
[1732445104497,0.04029501,3366.1,3364.4,0.55]
[1732445104800,0.04029501,3366.1,3364.3,3.0]
[1732445105087,0.01419394,3366.1,3364.5,0.2951]
[1732445105291,0.01419394,3366.1,3364.4,0.55]
[1732445105292,0.05676285,3366.2,3364.8,0.5]
[1732445105491,0.04569497,3365.9,3364.8,0.5]
[1732445105802,0.03942498,3365.8,3364.8,0.5]
[1732445106309,0.07656762,3365.8,3364.8,0.5]
[1732445106995,0.07656762,3365.8,3363.6,3.0]
[1732445106996,0.03942498,3365.8,3364.6,1.4773326]
[1732445107158,0.03942498,3365.8,3363.6,3.0]
[1732445107159,0.00088232,3365.8,3365.0,0.2951]
[1732445107358,0.7716,3366.5,3365.6,0.2951]
[1732445107695,0.7716,3366.5,3365.5,0.55]
[1732445107696,0.8658272,3364.4,3362.2,1.49183981]
[1732445107893,0.8229,3364.4,3362.1,3.6538728]
[1732445108283,0.08008471,3364.3,3362.2,1.78693981]
[1732445108454,0.08008471,3364.3,3362.1,3.5968]
[1732445108455,0.0429272,3364.3,3362.6,0.2951]
[1732445108796,0.1429272,3365.3,3362.9,1.0619]
[1732445108951,0.1429272,3365.1,3362.9,2.47983576]
[1732445109147,0.0429272,3364.6,3362.9,1.0619]
[1732445109376,0.0429272,3364.8,3362.9,1.0619]
[1732445109695,0.0429272,3364.3,3362.9,1.0619]
[1732445109990,0.8229,3364.8,3363.0,0.2951]
[1732445110201,0.8229,3364.8,3363.2,0.2951]
[1732445110351,0.8229,3364.8,3363.0,3.0]
[1732445110352,0.0379969,3364.7,3363.4,0.2951]
[1732445110550,0.8229,3365.4,3363.4,0.2951]
[1732445110789,0.0429272,3365.1,3363.4,0.2951]
[1732445110994,0.0429272,3364.5,3363.0,0.2451]
[1732445111296,0.0429272,3364.5,3362.9,0.7168]
[1732445111451,0.0429272,3364.7,3363.0,0.21555631]
[1732445111650,0.0429272,3364.7,3362.9,2.13473576]
[1732445111888,0.08008247,3365.3,3362.9,0.7168]
[1732445112203,0.03790037,3365.2,3363.7,0.8451]
[1732445112493,0.07504837,3365.2,3363.7,0.8451]
[1732445112697,0.8229,3365.4,3363.9,1.75548753]
[1732445112879,0.8229,3365.4,3364.2,0.55]
[1732445113557,0.8229,3365.4,3364.5,0.2951]
[1732445113756,0.8229,3365.4,3364.7,0.2951]
[1732445113952,0.0747679,3365.3,3364.8,0.55]
[1732445114301,0.03762462,3365.3,3364.8,0.55]
[1732445114499,0.07477219,3365.3,3364.8,0.55]
[1732445114649,0.0429272,3364.7,3363.4,0.2951]
[1732445115076,0.1429272,3365.3,3363.4,0.2951]
[1732445115300,0.0429272,3365.0,3363.4,0.2951]
[1732445116080,0.0429272,3365.0,3363.3,0.7668]
[1732445116460,0.08008202,3365.3,3363.4,0.55]
[1732445116660,0.08008202,3365.3,3363.4,3.8451]
[1732445116661,0.08007882,3365.3,3363.4,3.8451]
[1732445116967,0.0429272,3365.3,3363.6,0.55]
[1732445117168,0.8229,3365.4,3363.8,0.2951]
[1732445117500,0.8229,3365.4,3364.0,0.8451]
[1732445118387,0.07480539,3365.3,3364.0,0.8451]
[1732445118687,0.0429272,3364.7,3363.1,0.2951]
[1732445118871,0.0429272,3364.7,3362.8,0.7718]
[1732445118872,0.0429272,3364.1,3362.8,0.005]
[1732445119180,0.03767703,3364.0,3362.8,0.005]
[1732445120005,0.08008982,3364.3,3362.8,0.005]
[1732445120301,0.8229,3364.4,3362.8,0.005]
[1732445120598,0.0362558,3364.3,3362.8,0.3001]
[1732445120799,0.0362558,3364.3,3362.8,1.74024079]
[1732445121002,0.03715721,3364.3,3362.9,0.17402408]
[1732445121305,0.03715721,3364.3,3363.0,0.2951]
[1732445121306,0.0429272,3363.9,3363.0,0.2951]
[1732445121503,0.8135,3363.8,3363.0,0.2951]
[1732445121657,0.84972546,3363.8,3363.0,0.2951]
[1732445122059,0.03622546,3363.8,3362.8,0.3001]
[1732445122610,0.8135,3364.3,3362.8,0.3001]
[1732445122611,0.03622546,3363.7,3363.2,0.2951]
[1732445122767,0.03622546,3363.7,3363.6,0.2951]
[1732445123102,0.0429272,3364.0,3363.8,0.2951]
[1732445123261,0.8135,3364.3,3364.0,0.2951]
[1732445123458,0.0429272,3364.1,3364.0,0.8451]
[1732445123861,0.9135,3364.3,3364.0,0.8451]
[1732445123862,0.03715987,3364.2,3364.1,0.55]
[1732445124082,0.8135,3364.3,3364.1,0.8451]
[1732445124496,0.03715938,3365.3,3364.1,0.8451]
[1732445124497,0.7705,3364.8,3364.1,0.8451]
[1732445126509,0.0429272,3364.4,3364.2,0.2951]
[1732445126672,0.13715043,3364.7,3362.8,0.8233]
[1732445126673,0.0429272,3364.0,3362.8,0.005]
[1732445126875,0.0429272,3363.3,3362.8,0.005]
[1732445127192,0.0429272,3362.9,3362.8,0.005]
[1732445127402,0.8134272,3362.9,3362.8,0.005]
[1732445127603,0.85060336,3362.9,3362.8,0.005]
[1732445127974,0.0429272,3362.2,3360.9,0.2951]
[1732445128279,0.8134272,3361.9,3360.6,0.2951]
[1732445128472,0.0429272,3361.7,3360.6,0.2951]
[1732445128899,0.7705,3361.9,3360.6,0.2951]
[1732445130222,0.7705,3361.9,3360.6,0.2451]
[1732445130423,0.7705,3362.4,3360.8,0.1951]
[1732445130625,0.7705,3362.4,3361.0,0.1951]
[1732445131204,0.7705,3363.0,3361.1,0.2951]
[1732445131516,0.7705,3363.0,3361.2,0.55]
[1732445131716,0.7705,3363.0,3361.2,0.5]
[1732445131920,0.7705,3363.0,3361.3,0.8183]
[1732445132423,0.0429272,3362.6,3361.4,0.16134]
[1732445132583,0.0429272,3362.9,3360.8,3.0]
[1732445132912,0.0429272,3363.1,3360.9,3.6892]
[1732445133122,0.0429272,3362.9,3361.0,0.2951]
[1732445133536,0.0429272,3362.9,3361.0,4.74512135]
[1732445133741,0.7705,3363.2,3361.1,0.55]
[1732445133946,0.0429272,3362.9,3361.1,0.55]
[1732445134147,0.0429272,3363.1,3361.1,0.55]
[1732445134349,0.7705,3362.5,3360.8,3.0]
[1732445134548,0.0429272,3362.3,3360.7,2.83]
[1732445134705,0.0429272,3362.1,3360.1,2.2868068]
[1732445135045,0.7705,3362.0,3360.1,2.2868068]
[1732445135544,0.7705,3362.0,3360.1,0.8183]
[1732445135845,0.7705,3362.0,3360.1,5.2868068]
[1732445136344,0.7705,3362.0,3360.4,1.4216154]
[1732445136502,0.7705,3362.0,3360.6,0.16219154]
[1732445136842,0.7705,3362.0,3360.1,5.2868068]
[1732445137045,0.8134272,3362.0,3360.1,4.4685068]
[1732445137222,0.7705,3362.0,3360.1,4.4685068]
[1732445137945,0.7705,3362.0,3360.1,4.7636068]
[1732445138242,0.0429272,3361.9,3360.6,0.55]
[1732445138436,0.0429272,3361.9,3360.1,4.4685068]
[1732445138946,0.1371832,3362.3,3360.0,3.0]
[1732445138947,0.8134272,3360.1,3360.0,3.0]
[1732445139104,0.7705,3360.1,3360.0,3.0]
[1732445139305,0.06060719,3360.1,3358.6,0.7705]